fUST/lending_fUST_20250218
["ID","MTS","AMOUNT","RATE_DAILY","PERIOD"]
[353503728,1739890239034,-500.0,0.00014116,2]
[353503729,1739890239041,-500.0,0.00014116,2]
[353503730,1739890239050,-506.55930327,0.00014116,2]
[353503731,1739890239059,-1004.95,0.00014116,2]
[353503732,1739890239068,-2252.67,0.00014117,2]
[353503733,1739890239078,-500.0,0.00014117,2]
[353503734,1739890239087,-500.0,0.00014117,2]
[353503735,1739890239096,-500.0,0.00014117,2]
[353503736,1739890239106,-1469.5,0.00014117,2]
[353503737,1739890239115,-849.96,0.00014117,2]
[353503738,1739890239124,-4662.18,0.00014117,2]
[353503739,1739890239133,-653.72,0.00014117,2]
[353503740,1739890239143,-1278.94,0.00014117,2]
[353503741,1739890239152,-1607.22,0.00014117,2]
[353503742,1739890239161,-500.0,0.00014117,2]
[353503743,1739890239170,-1709.45,0.00014117,2]
[353503744,1739890239180,-253.25034308,0.00014117,2]
[353503745,1739890239189,-500.0,0.00014117,2]
[353503746,1739890239198,-3937.15,0.00014117,2]
[353503747,1739890239207,-500.0,0.00014117,2]
[353503748,1739890239217,-500.0,0.00014117,2]
[353503749,1739890239226,-500.0,0.00014117,2]
[353503750,1739890239235,-2289.29,0.00014117,2]
[353503751,1739890239245,-956.0,0.00014117,2]
[353503752,1739890239254,-635.89,0.00014117,2]
[353503753,1739890239264,-2170.64,0.00014117,2]
[353503754,1739890239276,-2170.64,0.00014117,2]
[353503755,1739890239285,-2170.64,0.00014117,2]
[353503756,1739890239295,-2170.64,0.00014117,2]
[353503757,1739890239304,-2170.64,0.00014117,2]
[353503758,1739890239314,-500.0,0.00014118,2]
[353503759,1739890239323,-500.0,0.00014118,2]
[353503760,1739890239332,-500.0,0.00014118,2]
[353503761,1739890239341,-500.0,0.00014118,2]
[353503762,1739890239350,-500.0,0.00014118,2]
[353503763,1739890239360,-500.0,0.00014118,2]
[353503764,1739890239369,-614.59878562,0.00014118,2]
[353503765,1739890239379,-151.0,0.00014118,2]
[353503766,1739890239388,-151.0,0.00014118,2]
[353503767,1739890239397,-500.0,0.00014118,2]
[353503768,1739890239406,-500.0,0.00014118,2]
[353503769,1739890239415,-500.0,0.00014118,2]
[353503770,1739890239424,-626.19,0.00014118,2]
[353503771,1739890239433,-500.0,0.00014118,2]
[353503772,1739890239443,-500.0,0.00014118,2]
[353503773,1739890239452,-626.99,0.00014118,2]
[353503774,1739890239461,-500.0,0.00014118,2]
[353503775,1739890239470,-500.0,0.00014118,2]
[353503776,1739890239480,-151.0,0.00014118,2]
[353503777,1739890239489,-151.0,0.00014118,2]
[353503778,1739890239498,-151.0,0.00014118,2]
[353503779,1739890239507,-233.0,0.00014118,2]
[353503780,1739890239517,-500.0,0.00014118,2]
[353503781,1739890239528,-500.0,0.00014118,2]
[353503782,1739890239537,-500.0,0.00014118,2]
[353503783,1739890239546,-500.0,0.00014118,2]
[353503784,1739890239555,-500.0,0.00014118,2]
[353503785,1739890239565,-17025.04,0.00014118,2]
[353503786,1739890239574,-500.0,0.00014118,2]
[353503787,1739890239583,-1178.9,0.00014118,2]
[353503788,1739890239593,-500.0,0.00014118,2]
[353503789,1739890239602,-5482.02,0.00014118,2]
[353503790,1739890239611,-614.03,0.00014118,2]
[353503791,1739890239620,-500.0,0.00014118,2]
[353503792,1739890239630,-1263.06,0.00014118,2]
[353503793,1739890239639,-1013.19,0.00014118,2]
[353503794,1739890239649,-500.0,0.00014118,2]
[353503795,1739890239658,-947.05,0.00014118,2]
[353503796,1739890239667,-2170.64,0.00014118,2]
[353503797,1739890239676,-2170.64,0.00014118,2]
[353503798,1739890239685,-501.0,0.00014119,2]
[353503799,1739890239694,-529.93,0.00014119,2]
[353503800,1739890239704,-500.0,0.00014119,2]
[353503801,1739890239713,-151.0,0.00014119,2]
[353503802,1739890239722,-500.0,0.00014119,2]
[353503803,1739890239731,-6843.26,0.00014119,2]
[353503804,1739890239741,-557.18,0.00014119,2]
[353503805,1739890239750,-2170.64,0.00014119,2]
[353503806,1739890239759,-500.0,0.0001412,2]
[353503807,1739890239771,-150.03214372,0.00014121,2]
[353503808,1739890239781,-160.02194052,0.00014165,2]
[353503809,1739890239790,-501.18304847,0.00014173,2]
[353503810,1739890239799,-500.0,0.00014173,2]
[353503811,1739890239808,-204.99690103,0.00014173,2]
[353503812,1739890239817,-501.57008291,0.00014173,2]
[353503813,1739890239826,-500.0,0.00014173,2]
[353503814,1739890239836,-181.931,0.00014186,2]
[353503815,1739890239845,-1605.87,0.00014198,2]
[353503816,1739890239855,-572.96296661,0.00014198,2]
[353503817,1739890239864,-500.0,0.00014198,2]
[353503819,1739890239874,-1004.95,0.00014198,2]
[353503821,1739890239883,-2252.67,0.00014199,2]
[353503822,1739890239892,-500.0,0.00014199,2]
[353503823,1739890239901,-500.0,0.00014199,2]
[353503825,1739890239911,-151.0,0.00014199,2]
[353503826,1739890239921,-505.82987098,0.00014199,2]
[353503827,1739890239931,-1469.5,0.00014199,2]
[353503828,1739890239943,-849.96,0.00014199,2]
[353503829,1739890239953,-4662.18,0.00014199,2]
[353503830,1739890239963,-653.72,0.00014199,2]
[353503832,1739890239972,-1278.94,0.00014199,2]
[353503834,1739890239982,-1607.22,0.00014199,2]
[353503836,1739890239992,-500.0,0.00014199,2]
[353503838,1739890240001,-1709.45,0.00014199,2]
[353503842,1739890240089,-500.0,0.00014199,2]
[353503844,1739890240099,-3937.15,0.00014199,2]
[353503846,1739890240108,-504.74455732,0.00014199,2]
[353503848,1739890240117,-500.0,0.00014199,2]
[353503850,1739890240127,-500.0,0.00014199,2]
[353503852,1739890240138,-2289.29,0.00014199,2]
[353503854,1739890240148,-956.0,0.00014199,2]
[353503856,1739890240157,-635.89,0.00014199,2]
[353503858,1739890240166,-2170.64,0.00014199,2]
[353503860,1739890240176,-151.0,0.000142,2]
[353503862,1739890240185,-500.0,0.000142,2]
[353503864,1739890240194,-271.46262053,0.000142,2]
[353503866,1739890240204,-500.0,0.000142,2]
[353503868,1739890240214,-500.0,0.000142,2]
[353503870,1739890240223,-242.12231562,0.000142,2]
[353503872,1739890240232,-500.0,0.000142,2]
[353503874,1739890240241,-151.0,0.000142,2]
[353503876,1739890240251,-500.0,0.000142,2]
[353503878,1739890240261,-213.14737572,0.000142,2]
[353503880,1739890240271,-500.0,0.000142,2]
[353503882,1739890240280,-626.19,0.000142,2]
[353503884,1739890240289,-500.0,0.000142,2]
[353503886,1739890240298,-500.0,0.000142,2]
[353503888,1739890240307,-626.99,0.000142,2]
[353503890,1739890240316,-322.89,0.000142,2]
[353503892,1739890240325,-500.0,0.000142,2]
[353503894,1739890240334,-151.0,0.000142,2]
[353503896,1739890240344,-500.0,0.000142,2]
[353503898,1739890240353,-505.83666062,0.000142,2]
[353503900,1739890240362,-592.44,0.000142,2]
[353503902,1739890240371,-500.0,0.000142,2]
[353503904,1739890240380,-500.0,0.000142,2]
[353503906,1739890240390,-17025.04,0.000142,2]
[353503908,1739890240399,-420.35,0.000142,2]
[353503911,1739890240408,-1178.9,0.000142,2]
[353503913,1739890240417,-500.0,0.000142,2]
[353503914,1739890240427,-5482.02,0.000142,2]
[353503916,1739890240437,-614.03,0.000142,2]
[353503919,1739890240447,-500.0,0.000142,2]
[353503920,1739890240456,-1263.06,0.000142,2]
[353503923,1739890240466,-1013.19,0.000142,2]
[353503925,1739890240475,-500.0,0.000142,2]
[353503926,1739890240484,-947.05,0.000142,2]
[353503929,1739890240494,-2170.64,0.000142,2]
[353503931,1739890240503,-2170.64,0.000142,2]
[353503932,1739890240512,-2170.64,0.000142,2]
[353503934,1739890240523,-2170.64,0.000142,2]
[353503936,1739890240532,-2170.84544555,0.000142,2]
[353503938,1739890240542,-529.93,0.00014201,2]
[353503941,1739890240551,-500.0,0.00014201,2]
[353503943,1739890240561,-151.0,0.00014201,2]
[353503944,1739890240570,-500.0,0.00014201,2]
[353503946,1739890240579,-6843.26,0.00014201,2]
[353503948,1739890240588,-557.18,0.00014201,2]
[353503951,1739890240598,-151.0,0.00014201,2]
[353503953,1739890240607,-1605.87,0.0001428,2]
[353503955,1739890240616,-500.0,0.0001428,2]
[353503957,1739890240627,-1004.95,0.0001428,2]
[353503959,1739890240637,-2252.67,0.00014281,2]
[353503961,1739890240646,-500.0,0.00014281,2]
[353503963,1739890240655,-607.27188188,0.00014281,2]
[353503965,1739890240664,-1469.5,0.00014281,2]
[353503967,1739890240673,-849.96,0.00014281,2]
[353503969,1739890240682,-4662.18,0.00014281,2]
[353503971,1739890240691,-653.72,0.00014281,2]
[353503973,1739890240701,-1278.94,0.00014281,2]
[353503975,1739890240710,-1607.22,0.00014281,2]
[353503977,1739890240719,-500.0,0.00014281,2]
[353503979,1739890240728,-1709.45,0.00014281,2]
[353503981,1739890240737,-500.0,0.00014281,2]
[353503983,1739890240746,-3937.15,0.00014281,2]
[353503985,1739890240755,-500.0,0.00014281,2]
[353503987,1739890240764,-500.0,0.00014281,2]
[353503989,1739890240775,-2289.29,0.00014281,2]
[353503991,1739890240784,-956.0,0.00014281,2]
[353503993,1739890240793,-635.89,0.00014281,2]
[353503995,1739890240803,-500.0,0.00014282,2]
[353503997,1739890240812,-500.0,0.00014282,2]
[353503999,1739890240822,-482.26008144,0.00014282,2]
[353504001,1739890240831,-500.0,0.00014282,2]
[353504003,1739890240840,-158.866005,0.00014282,2]
[353504005,1739890240849,-500.0,0.00014282,2]
[353504007,1739890240859,-500.0,0.00014282,2]
[353504009,1739890240868,-626.19,0.00014282,2]
[353504011,1739890240877,-500.0,0.00014282,2]
[353504013,1739890240887,-500.0,0.00014282,2]
[353504015,1739890240896,-626.99,0.00014282,2]
[353504017,1739890240905,-500.0,0.00014282,2]
[353504019,1739890240916,-500.0,0.00014282,2]
[353504021,1739890240927,-500.0,0.00014282,2]
[353504023,1739890240937,-500.0,0.00014282,2]
[353504025,1739890240946,-3700.4647136,0.00014282,2]
[353504031,1739890240993,-13324.5752864,0.00014282,2]
[353504033,1739890241002,-1178.9,0.00014282,2]
[353504034,1739890241012,-500.0,0.00014282,2]
[353504035,1739890241025,-5482.02,0.00014282,2]
[353504036,1739890241035,-614.03,0.00014282,2]
[353504037,1739890241044,-500.0,0.00014282,2]
[353504038,1739890241053,-1263.06,0.00014282,2]
[353504039,1739890241063,-1013.19,0.00014282,2]
[353504040,1739890241073,-242.23,0.00014282,2]
[353504041,1739890241083,-947.05,0.00014282,2]
[353504042,1739890241092,-529.93,0.00014283,2]
[353504043,1739890241102,-500.0,0.00014283,2]
[353504044,1739890241111,-500.0,0.00014283,2]
[353504045,1739890241121,-5455.98658855,0.00014283,2]
[353504046,1739890241133,-1387.27341145,0.00014283,2]
[353504047,1739890241142,-557.18,0.00014283,2]
[353504048,1739890241152,-503.64714928,0.00014287,2]
[353504049,1739890241161,-151.0,0.000143,2]
[353504051,1739890241171,-203.87341252,0.00014306,2]
[353504053,1739890241180,-5492.04297382,0.00014343,2]
[353504055,1739890241189,-3000.0,0.00014349,2]
[353504057,1739890241199,-2252.67,0.00014363,2]
[353504059,1739890241209,-500.0,0.00014363,2]
[353504061,1739890241218,-1469.5,0.00014363,2]
[353504063,1739890241226,-276.06687154,0.00014363,2]
[353504065,1739890241239,-573.89312846,0.00014363,2]
[353504067,1739890241248,-681.15159647,0.00014363,2]
[353504069,1739890241259,-3981.02840353,0.00014363,2]
[353504071,1739890241268,-653.72,0.00014363,2]
[353504073,1739890241280,-1278.94,0.00014363,2]
[353504075,1739890241289,-1607.22,0.00014363,2]
[353504077,1739890241299,-500.0,0.00014363,2]
[353504079,1739890241308,-1709.45,0.00014363,2]
[353504081,1739890241317,-500.0,0.00014363,2]
[353504083,1739890241326,-1605.87,0.00014363,2]
[353504085,1739890241336,-3539.57002242,0.00014363,2]
[353504088,1739890241347,-356.95191,0.00014363,2]
[353504090,1739890241363,-40.62806758,0.00014363,2]
[353504092,1739890241372,-500.0,0.00014363,2]
[353504094,1739890241382,-165.41059455,0.00014363,2]
[353504364,1739890243271,-500.0,0.0001387,2]
[353504366,1739890243282,-500.0,0.00013952,2]
[353504368,1739890243292,-500.0,0.00014035,2]
[353504371,1739890243302,-500.0,0.00014117,2]
[353504375,1739890243312,-500.0,0.00014199,2]
[353504378,1739890243322,-500.0,0.00014281,2]
[353504381,1739890243331,-334.58940545,0.00014363,2]
[353504384,1739890243342,-500.0,0.00014363,2]
[353504387,1739890243351,-2289.29,0.00014363,2]
[353504390,1739890243361,-956.0,0.00014363,2]
[353504393,1739890243370,-635.89,0.00014363,2]
[353504396,1739890243380,-1004.95,0.00014363,2]
[353504398,1739890243389,-500.0,0.00014364,2]
[353504400,1739890243399,-500.0,0.00014364,2]
[353504402,1739890243409,-500.0,0.00014364,2]
[353504404,1739890243418,-514.24510151,0.00014364,2]
[353504407,1739890243428,-626.19,0.00014364,2]
[353504410,1739890243437,-482.96894484,0.00014364,2]
[353504413,1739890243449,-17.03105516,0.00014364,2]
[353504416,1739890243459,-500.0,0.00014364,2]
[353504428,1739890243469,-626.99,0.00014364,2]
[353504430,1739890243549,-152.3,0.00014364,2]
[353504432,1739890243559,-500.0,0.00014364,2]
[353504434,1739890243568,-500.0,0.00014364,2]
[353504436,1739890243578,-233.18862274,0.00014364,2]
[353504438,1739890243590,-266.81137726,0.00014364,2]
[353504440,1739890243599,-236.66812274,0.00014364,2]
[353504443,1739890243611,-16788.37187726,0.00014364,2]
[353504445,1739890243621,-1178.9,0.00014364,2]
[353504446,1739890243630,-500.0,0.00014364,2]
[353504448,1739890243639,-5482.02,0.00014364,2]
[353504450,1739890243649,-614.03,0.00014364,2]
[353504452,1739890243659,-172.5709788,0.00014364,2]
[353504455,1739890243669,-1263.06,0.00014364,2]
[353504456,1739890243678,-1013.19,0.00014364,2]
[353504458,1739890243687,-947.05,0.00014364,2]
[353504461,1739890243697,-529.93,0.00014365,2]
[353504463,1739890243706,-500.0,0.00014365,2]
[353504465,1739890243716,-500.0,0.00014365,2]
[353504467,1739890243725,-6843.26,0.00014365,2]
[353504469,1739890243735,-557.18,0.00014365,2]
[353504471,1739890243744,-151.0,0.000144,2]
[353504473,1739890243754,-800.0,0.00014438,2]
[353504475,1739890243763,-1605.87,0.00014445,2]
[353504477,1739890243777,-153.12180874,0.00014445,2]
[353504479,1739890243786,-1004.95,0.00014445,2]
[353504481,1739890243795,-2252.67,0.00014446,2]
[353504483,1739890243804,-500.0,0.00014446,2]
[353504485,1739890243813,-1469.5,0.00014446,2]
[353504487,1739890243822,-849.96,0.00014446,2]
[353504489,1739890243832,-4662.18,0.00014446,2]
[353504491,1739890243841,-653.72,0.00014446,2]
[353504493,1739890243850,-1278.94,0.00014446,2]
[353504495,1739890243859,-1607.22,0.00014446,2]
[353504497,1739890243868,-500.0,0.00014446,2]
[353504499,1739890243878,-1709.45,0.00014446,2]
[353504501,1739890243887,-500.0,0.00014446,2]
[353504503,1739890243897,-3937.15,0.00014446,2]
[353504505,1739890243906,-500.0,0.00014446,2]
[353504507,1739890243916,-500.0,0.00014446,2]
[353504509,1739890243925,-2289.29,0.00014446,2]
[353504511,1739890243934,-956.0,0.00014446,2]
[353504513,1739890243944,-635.89,0.00014446,2]
[353504515,1739890243954,-529.93,0.00014447,2]
[353504517,1739890243963,-500.0,0.00014447,2]
[353504519,1739890243973,-500.0,0.00014447,2]
[353504521,1739890243983,-500.0,0.00014447,2]
[353504523,1739890243993,-500.0,0.00014447,2]
[353504525,1739890244002,-500.0,0.00014447,2]
[353504527,1739890244011,-626.19,0.00014447,2]
[353504529,1739890244020,-6843.26,0.00014447,2]
[353504531,1739890244033,-267.30020935,0.00014447,2]
[353504533,1739890244043,-500.0,0.00014447,2]
[353504535,1739890244053,-626.99,0.00014447,2]
[353504537,1739890244062,-557.18,0.00014447,2]
[353504539,1739890244071,-500.0,0.00014447,2]
[353504541,1739890244081,-500.0,0.00014447,2]
[353504543,1739890244091,-500.0,0.00014447,2]
[353504545,1739890244100,-17025.04,0.00014447,2]
[353504547,1739890244110,-1178.9,0.00014447,2]
[353504549,1739890244119,-500.0,0.00014447,2]
[353504551,1739890244128,-5482.02,0.00014447,2]
[353504553,1739890244137,-614.03,0.00014447,2]
[353504555,1739890244147,-1263.06,0.00014447,2]
[353504557,1739890244156,-1013.19,0.00014447,2]
[353504559,1739890244165,-947.05,0.00014447,2]
[353504561,1739890244175,-151.0,0.000145,2]
[353504563,1739890244184,-1605.87,0.00014527,2]
[353504565,1739890244194,-1004.95,0.00014527,2]
[353504567,1739890244203,-2252.67,0.00014528,2]
[353504569,1739890244213,-500.0,0.00014528,2]
[353504571,1739890244222,-1469.5,0.00014528,2]
[353504573,1739890244231,-849.96,0.00014528,2]
[353504575,1739890244240,-4662.18,0.00014528,2]
[353504577,1739890244250,-653.72,0.00014528,2]
[353504579,1739890244259,-1278.94,0.00014528,2]
[353504581,1739890244268,-1607.22,0.00014528,2]
[353504583,1739890244281,-500.0,0.00014528,2]
[353504585,1739890244290,-1709.45,0.00014528,2]
[353504587,1739890244299,-287.58,0.00014528,2]
[353504589,1739890244309,-3937.15,0.00014528,2]
[353504591,1739890244318,-500.0,0.00014528,2]
[353504593,1739890244327,-500.0,0.00014528,2]
[353504595,1739890244336,-2289.29,0.00014528,2]
[353504597,1739890244346,-956.0,0.00014528,2]
[353504599,1739890244355,-635.89,0.00014528,2]
[353504601,1739890244364,-500.0,0.00014529,2]
[353504603,1739890244373,-500.0,0.00014529,2]
[353504604,1739890244382,-500.0,0.00014529,2]
[353504605,1739890244391,-626.19,0.00014529,2]
[353504606,1739890244401,-500.0,0.00014529,2]
[353504607,1739890244410,-626.99,0.00014529,2]
[353504608,1739890244418,-500.0,0.00014529,2]
[353504609,1739890244427,-500.0,0.00014529,2]
[353504610,1739890244437,-500.0,0.00014529,2]
[353504611,1739890244446,-17025.04,0.00014529,2]
[353504612,1739890244456,-1178.9,0.00014529,2]
[353504613,1739890244465,-378.45,0.00014529,2]
[353504614,1739890244474,-5482.02,0.00014529,2]
[353504615,1739890244483,-614.03,0.00014529,2]
[353504616,1739890244492,-1263.06,0.00014529,2]
[353504617,1739890244501,-1013.19,0.00014529,2]
[353504618,1739890244511,-947.05,0.00014529,2]
[353504619,1739890244520,-529.93,0.0001453,2]
[353504620,1739890244532,-500.0,0.0001453,2]
[353504622,1739890244542,-500.0,0.0001453,2]
[353504624,1739890244551,-6843.26,0.0001453,2]
[353504626,1739890244561,-557.18,0.0001453,2]
[353504628,1739890244570,-203.87341252,0.00014532,2]
[353504630,1739890244579,-150.24,0.00014547,2]
[353504632,1739890244589,-500.0,0.00014547,2]
[353504634,1739890244599,-164.44444001,0.00014547,2]
[353504636,1739890244608,-166.9351263,0.00014547,2]
[353504638,1739890244618,-150.24,0.00014547,2]
[353504640,1739890244627,-150.24,0.00014547,2]
[353504642,1739890244636,-150.24,0.00014547,2]
[353504644,1739890244646,-150.24,0.00014547,2]
[353504646,1739890244655,-500.0,0.00014547,2]
[353504648,1739890244664,-500.0,0.00014547,2]
[353504650,1739890244673,-150.24,0.00014547,2]
[353504652,1739890244684,-987.78312258,0.00014547,2]
[353504654,1739890244693,-150.24,0.00014547,2]
[353504656,1739890244703,-150.24,0.00014547,2]
[353504658,1739890244712,-500.0,0.00014547,2]
[353504660,1739890244721,-500.0,0.00014547,2]
[353504662,1739890244730,-150.24,0.00014547,2]
[353504664,1739890244740,-500.0,0.00014547,2]
[353504666,1739890244750,-136.19508594,0.00014547,2]
[353504671,1739890244791,-14.04491406,0.00014547,2]
[353504673,1739890244801,-500.0,0.00014547,2]
[353504675,1739890244810,-500.0,0.00014547,2]
[353504677,1739890244820,-1297.87697727,0.00014548,2]
[353504680,1739890244829,-344.0,0.0001456,2]
[353504682,1739890244839,-151.0,0.000146,2]
[353504684,1739890244848,-1605.87,0.00014609,2]
[353504686,1739890244858,-1004.95,0.00014609,2]
[353504687,1739890244867,-2252.67,0.0001461,2]
[353504690,1739890244876,-500.0,0.0001461,2]
[353504692,1739890244886,-1469.5,0.0001461,2]
[353504694,1739890244896,-849.96,0.0001461,2]
[353504696,1739890244905,-4662.18,0.0001461,2]
[353504698,1739890244915,-653.72,0.0001461,2]
[353504700,1739890244925,-1278.94,0.0001461,2]
[353504702,1739890244934,-1607.22,0.0001461,2]
[353504704,1739890244943,-500.0,0.0001461,2]
[353504706,1739890244953,-1709.45,0.0001461,2]
[353504707,1739890244963,-2765.61004218,0.0001461,2]
[353504710,1739890244975,-655.15499787,0.0001461,2]
[353504843,1739890246061,-500.0,0.00014363,2]
[353504845,1739890246071,-500.0,0.00014446,2]
[353504847,1739890246080,-70.47643908,0.00014528,2]
[353504849,1739890246092,-429.52356092,0.00014528,2]
[353504851,1739890246102,-516.38495995,0.0001461,2]
[353504853,1739890246112,-500.0,0.0001461,2]
[353504855,1739890246122,-500.0,0.0001461,2]
[353504857,1739890246132,-2289.29,0.0001461,2]
[353504859,1739890246141,-956.0,0.0001461,2]
[353504861,1739890246151,-635.89,0.0001461,2]
[353504863,1739890246162,-500.0,0.0001461,2]
[353504874,1739890246248,-500.0,0.00014611,2]
[353504876,1739890246258,-500.0,0.00014611,2]
[353504878,1739890246268,-500.0,0.00014611,2]
[353504880,1739890246279,-626.19,0.00014611,2]
[353504882,1739890246289,-500.0,0.00014611,2]
[353504884,1739890246298,-626.99,0.00014611,2]
[353504886,1739890246308,-462.56,0.00014611,2]
[353504888,1739890246317,-500.0,0.00014611,2]
[353504890,1739890246327,-500.0,0.00014611,2]
[353504892,1739890246337,-17025.04,0.00014611,2]
[353504894,1739890246346,-1178.9,0.00014611,2]
[353504896,1739890246356,-4753.23278413,0.00014611,2]
[353504899,1739890246369,-728.78721587,0.00014611,2]
[353504901,1739890246378,-614.03,0.00014611,2]
[353504902,1739890246388,-1103.3796196,0.00014611,2]
[353504905,1739890246399,-159.6803804,0.00014611,2]
[353504907,1739890246409,-1013.19,0.00014611,2]
[353504909,1739890246419,-947.05,0.00014611,2]
[353504911,1739890246428,-529.93,0.00014612,2]
[353504913,1739890246437,-25.14961959,0.00014612,2]
[353509465,1739890686462,1000.0,0.00019,120]
[353509949,1739891152127,-158.8405508,0.00012808,2]
[353509950,1739891152147,-312.44648334,0.00012937,2]
[353509951,1739891152168,-325.28455636,0.00013068,2]
[353509952,1739891234120,-472.44239515,0.00013068,2]
[353509960,1739891241118,-327.55760485,0.00013068,2]
[353509961,1739891241141,-193.76226367,0.00013849,2]
[353509962,1739891241162,-144.51289748,0.00013865,2]
[353509963,1739891251092,-155.48710252,0.00013865,2]
[353509964,1739891251113,-493.12678468,0.00013866,2]
[353509965,1739891251135,-500.0,0.00013866,2]
[353509966,1739891251158,-140.42677229,0.00013866,2]
[353510024,1739891432512,-420.6282579,0.00012869,2]
[353510025,1739891432522,-700.0,0.00013068,2]
[353510027,1739891432532,-2655.59283839,0.00013387,2]
[353510029,1739891432541,-300.0,0.00013864,2]
[353510031,1739891432550,-1868.44,0.00013865,2]
[353510033,1739891432563,-500.0,0.00013865,2]
[353510035,1739891432572,-500.0,0.00013865,2]
[353510037,1739891432582,-500.0,0.00013865,2]
[353510039,1739891432591,-500.0,0.00013865,2]
[353510041,1739891432600,-500.0,0.00013865,2]
[353510043,1739891432609,-163.58285885,0.00013865,2]
[353510045,1739891432619,-500.0,0.00013865,2]
[353510047,1739891432628,-500.0,0.00013865,2]
[353510049,1739891432637,-460.60822416,0.00013865,2]
[353510051,1739891432646,-500.0,0.00013865,2]
[353510053,1739891432656,-500.0,0.00013865,2]
[353510055,1739891432665,-500.0,0.00013865,2]
[353510057,1739891432675,-500.0,0.00013865,2]
[353510059,1739891432684,-500.0,0.00013865,2]
[353510061,1739891432693,-500.0,0.00013865,2]
[353510063,1739891432702,-574.1449423,0.00013865,2]
[353510065,1739891432712,-500.0,0.00013865,2]
[353510067,1739891432721,-500.0,0.00013865,2]
[353510068,1739891432730,-500.0,0.00013865,2]
[353510070,1739891432739,-500.0,0.00013865,2]
[353510072,1739891432749,-500.0,0.00013865,2]
[353510074,1739891432758,-500.0,0.00013865,2]
[353510076,1739891432768,-967.97,0.00013865,2]
[353510077,1739891432777,-500.0,0.00013865,2]
[353510078,1739891432786,-500.0,0.00013865,2]
[353510079,1739891432795,-500.0,0.00013865,2]
[353510080,1739891432807,-2653.16,0.00013865,2]
[353510081,1739891432816,-500.0,0.00013865,2]
[353510082,1739891432826,-5175.18,0.00013865,2]
[353510083,1739891432835,-2105.37,0.00013865,2]
[353510084,1739891432845,-2054.28,0.00013865,2]
[353510085,1739891432854,-500.0,0.00013866,2]
[353510086,1739891432863,-66.72437627,0.00013866,2]
[353510087,1739891432876,-287.42894297,0.00013866,2]
[353510088,1739891432886,-1103.57,0.00013866,2]
[353510089,1739891432895,-814.52,0.00013866,2]
[353510090,1739891432904,-500.0,0.00013866,2]
[353510091,1739891432914,-500.0,0.00013866,2]
[353510092,1739891432923,-1464.87,0.00013866,2]
[353510093,1739891432932,-500.0,0.00013866,2]
[353510094,1739891432942,-599.18,0.00013866,2]
[353510095,1739891432951,-500.0,0.00013866,2]
[353510096,1739891432960,-2027.64,0.00013866,2]
[353510097,1739891432970,-4502.31,0.00013866,2]
[353510098,1739891432979,-500.0,0.00013866,2]
[353510099,1739891432988,-500.0,0.00013866,2]
[353510100,1739891432997,-2366.12,0.00013866,2]
[353510101,1739891433007,-500.0,0.00013866,2]